Cogmind - Beta 13 @@@ ROGUE MODE // 2024.04.09 @ 18:33:22 Player: graour Result: Destroyed by TU-HC9(R) with Subdweller Shrapnel Launcher Performance ------------- Evolutions (0) 0 Regions Visited (2) 400 Robots Destroyed (21) 105 Value Destroyed (461) 461 Prototype IDs (1) 20 Alien Tech Used (0) 0 Bonus (0) 0 TOTAL SCORE: 986 Bonus ------- None Cogmind --------- Core Integrity 0/250 Matter 228/300 Energy 250/250 System Corruption 1% Temperature Cool (0) Movement Walking (130) Location -10/Subcaves Parts ------- > --- POWER (1) -------- Ion Engine > --- PROPULSION (2) --- Cargo Legs > --- UTILITY (2+2) ---- Medium Storage Unit (+) Scrap Shield > --- WEAPON (2) ------- Medium Laser Subdweller Machine Gun > --- INVENTORY (10) --- Ion Engine Light Ion Engine Light Treads Medium Laser Grenade Launcher Grenade Launcher Peak State ------------ > --- POWER ------------ Ion Engine > --- PROPULSION ------- Cargo Legs > --- UTILITY ---------- Medium Storage Unit Scrap Shield > --- WEAPON ----------- Medium Laser Subdweller Machine Gun > --- INVENTORY -------- Ion Engine Light Ion Engine Grenade Launcher Grenade Launcher [Rating: 25] Favorites ----------- Power Ion Engine Engine Ion Engine Propulsion Light Treads Treads Light Treads Leg Cargo Legs Hover Unit Hover Unit Utility Small Storage Unit Storage Small Storage Unit Processor Signal Interpreter Protection Scrap Shield Weapon Medium Laser Energy Gun Medium Laser Ballistic Gun Subdweller Machine Gun Ballistic Cannon Light Cannon Build | -11 -10 -10 ------- Run | Yrd Mat Sub Slots Evolved . | . . . Power . | . . . Propulsion . | . . . Utility . | . . . Weapon . | . . . Parts Attached 23 | 7 8 8 Power 3 | 1 2 . Engine 3 | 1 2 . Core . | . . . Reactor . | . . . Propulsion 5 | 2 . 3 Treads 2 | 2 . . Leg 1 | . . 1 Wheel . | . . . Hover 2 | . . 2 Flight . | . . . Utility 5 | 1 2 2 Device . | . . . Storage 3 | 1 1 1 Processor 1 | . 1 . Hackware . | . . . Protection 1 | . . 1 Artifact . | . . . Weapon 10 | 3 4 3 Energy Gun 6 | 2 2 2 Energy Cannon . | . . . Ballistic Gun 2 | 1 . 1 Ballistic Cannon 2 | . 2 . Launcher . | . . . Special Weapon . | . . . Impact Weapon . | . . . Slashing Weapon . | . . . Piercing Weapon . | . . . Special Melee Weapon . | . . . Unidentified Prototypes 1 | . . 1 Parts Lost 6 | . . 6 Power . | . . . Propulsion 3 | . . 3 Utility 1 | . . 1 Weapon 2 | . . 2 Highest Loss Streak 6 | . . 6 To Critical Strikes 1 | . . 1 Average Slot Usage (%) 88 | . 91 74 Engine 13 | . 14 12 Treads 23 | . 28 4 Hover 1 | . . 5 Storage 13 | . 14 10 Processor 5 | . 6 3 Protection 1 | . . 6 Energy Gun 12 | . 13 11 Ballistic Gun 1 | . . 6 Ballistic Cannon 12 | . 14 7 Naked Turns . | . . . Heaviest Build 39 | 14 21 39 Greatest Support 55 | 40 40 55 Greatest Overweight (x) 4 | . . 4 Average Overweight (x) . | . . . Largest Inventory Capacity 10 | 8 10 10 Average Capacity 8 | 7 8 9 Most Carried 8 | 6 8 8 Average Carried 7 | 4 7 5 Final Capacity 10 | 8 10 10 Final Carried 8 | 6 8 6 Class Distribution -------------------- 100% | Mutant Dominant Class ---------------- Mutant | -10/Materials Mutant | -10/Subcaves Resources | -11 -10 -10 ----------- Run | Yrd Mat Sub Matter Collected 602 | 250 154 198 Remotely . | . . . Salvage Created 493 | . 287 206 Parts 31 | . 24 7 Haulers Intercepted 1 | . 1 . Recyclers Shooed . | . . . Parts Field Recycled . | . . . Retrieved Matter . | . . . Parts Self-Destructed 2 | . . 2 Prevented . | . . . Kills | -11 -10 -10 ------- Run | Yrd Mat Sub Combat Hostiles Destroyed 18 | . 12 6 Guns 11 | . 8 3 Cannons 6 | . 3 3 Classes Destroyed 6 | . 4 2 Hauler 1 | . 1 . Watcher 2 | . 2 . Swarmer 10 | . 9 1 Grunt 3 | . 3 . Sentry 1 | . . 1 Subdweller 4 | . . 4 Best Kill Streak 5 | . 5 2 Combat Bots Only 5 | . 5 2 Max Kills in Single Turn 2 | . 1 2 Gunslinging 1 | . . 1 Exploded . | . . . Melee . | . . . Uniques/NPCs Destroyed . | . . . Combat | -11 -10 -10 -------- Run | Yrd Mat Sub Hostile Shots Fired 98 | . 44 54 Missed 25 | . 12 13 Damage Taken 1168 | . 291 877 Core 254 | . 52 202 Absorbed by Shields . | . . . Core Remaining (%) 100 | 100 . . Volleys Fired 61 | . 38 23 Largest 2 | . 2 2 Hottest 100 | . 100 100 Shots Fired 117 | . 72 45 Gun 52 | . 34 18 Cannon 65 | . 38 27 Launcher . | . . . Special . | . . . Kinetic 72 | . 38 34 Thermal 45 | . 34 11 Explosive . | . . . Electromagnetic . | . . . Robot Hit Streak 18 | . 10 18 Robot Miss Streak 4 | . 4 1 Penetration Max . | . . . Secondary Targets 1 | . . 1 Max Gunslinging Chain 1 | . . 1 Shots Hit Robots 76 | . 37 39 Core Hits 28 | . 17 11 Critical Kills . | . . . Critical Parts Destroyed . | . . . Critical Strikes 3 | . 2 1 Burn 1 | . 1 . Blast 2 | . 1 1 Melee Attacks . | . . . Impact . | . . . Slashing . | . . . Piercing . | . . . Sneak Attacks . | . . . Combat Hostiles . | . . . Follow-up Attacks . | . . . Damage Inflicted 1219 | . 533 686 Guns 596 | . 300 296 Cannons 623 | . 233 390 Explosions . | . . . Melee . | . . . Ramming . | . . . Kinetic 781 | . 233 548 Thermal 438 | . 300 138 Explosive . | . . . Electromagnetic . | . . . Impact . | . . . Slashing . | . . . Piercing . | . . . Highest Corruption 1 | . 1 1 Average Corruption 1 | . 1 1 Corruption Purged . | . . . Corruption Blocked . | . . . Effects 3 | . 1 2 Message Errors 1 | . . 1 Heat Flow Errors 1 | . . 1 Data Loss (major) 1 | . 1 . Overload Shots . | . . . Overflow Damage . | . . . Projectiles . | . . . Explosions . | . . . Melee . | . . . Knockbacks 9 | . 3 6 Impact . | . . . Kinetic 9 | . 3 6 Secondary . | . . . Self-Inflicted Damage . | . . . Shots . | . . . Rammed . | . . . Targets Rammed . | . . . Kicked . | . . . Crushed . | . . . Highest Temperature 276 | . 276 69 Average Temperature 60 | . 60 50 Received Heat Transfer 180 | . 66 114 Effects 1 | . 1 . Interference 1 | . 1 . Siege Activations . | . . . Robots Corrupted . | . . . Combat Hostiles . | . . . Parts Fried . | . . . Impact Corruptions . | . . . Robots Melted 1 | . 1 . Combat Hostiles 1 | . 1 . Parts Melted 5 | . 5 . Heat Transferred 1369 | . 962 407 Parts Sabotaged . | . . . Parts Stolen . | . . . Parts Stripped . | . . . Power Chain Reactions . | . . . Alert | -11 -10 -10 ------- Run | Yrd Mat Sub Peak Influence 262 | . 262 . Initial . | . . . Average 106 | . 116 . Maximum Alert Level 1 | . 1 . Low Security (%) 91 | 100 90 . Level 1 8 | . 9 . Level 2 . | . . . Level 3 . | . . . Level 4 . | . . . Level 5 . | . . . High Security . | . . . Max Security . | . . . Squads Dispatched 2 | . 2 . Investigation 1 | . 1 . Extermination . | . . . Reinforcement 1 | . 1 . Assault . | . . . Garrison . | . . . Intercept . | . . . Searches Triggered . | . . . Construction Impeded . | . . . Haulers Reinforced . | . . . Active Scanning Responses . | . . . Cargo Convoy Interrupts . | . . . Stealth | -11 -10 -10 --------- Run | Yrd Mat Sub Distress Signals . | . . . Communications Jammed . | . . . Distress Signals . | . . . Times Spotted 26 | . 19 7 Peak Tracking Total 3 | . 3 3 Tactical Retreats 3 | . 3 . Traps | -11 -10 -10 ------- Run | Yrd Mat Sub Traps Triggered 3 | . 3 . Indirectly . | . . . Trap Hack Attempts . | . . . Triggered . | . . . Disarmed . | . . . Reprogrammed . | . . . Reused . | . . . Traps Extracted . | . . . Installed . | . . . Triggered . | . . . Machines | -11 -10 -10 ---------- Run | Yrd Mat Sub Machines Disabled 3 | . 3 . Max in Single Turn 1 | . 1 . Machines Repaired . | . . . Machines Dismantled . | . . . Machines Sabotaged . | . . . Overloaded Fab Kills . | . . . Hacking | -11 -10 -10 --------- Run | Yrd Mat Sub Machines Accessed 8 | . 8 . Terminals 8 | . 8 . Fabricators . | . . . Repair Stations . | . . . Recycling Units . | . . . Scanalyzers . | . . . Garrison Access . | . . . Total Hacks 16 | . 16 . Successful 7 | . 7 . Failed 9 | . 9 . Catastrophic 1 | . 1 . Database Lockouts . | . . . Manual 7 | . 7 . Terminals 16 | . 16 . Fabricators . | . . . Repair Stations . | . . . Recycling Units . | . . . Scanalyzers . | . . . Garrison Access . | . . . Terminal Hacks 7 | . 7 . Record 1 | . 1 . Robot Analysis 1 | . 1 . Unreport Threat 2 | . 2 . Locate Traps 1 | . 1 . Zone Layout 2 | . 2 . Fabricator Hacks . | . . . Repair Station Hacks . | . . . Recycling Unit Hacks . | . . . Scanalyzer . | . . . Garrison Access Hacks . | . . . Unauthorized Hacks . | . . . Terminals . | . . . Fabricators . | . . . Repair Stations . | . . . Recycling Units . | . . . Scanalyzers . | . . . Garrison Access . | . . . Data Cores Recovered . | . . . Used . | . . . Hacking Detections 6 | . 6 . Full Trace Events . | . . . Feedback Events . | . . . Feedback Blocked . | . . . Robot Schematics Acquired . | . . . Robots Built . | . . . Authchips . | . . . Time . | . . . Total Robot Build Rating . | . . . Part Schematics Acquired . | . . . Parts Built . | . . . Authchips . | . . . Time . | . . . Total Part Build Rating . | . . . Parts Repaired . | . . . Time . | . . . Parts Recycled . | . . . Recycled Matter . | . . . Retrieved Matter . | . . . Retrieved Components . | . . . Parts Scanalyzed . | . . . Part Schematics Acquired . | . . . Parts Damaged . | . . . Bothacking | -11 -10 -10 ------------ Run | Yrd Mat Sub Used RIF Installer . | . . . Robots Hacked . | . . . Non-combat . | . . . Combat . | . . . Robot Hacks Applied . | . . . Relay Couplers Released . | . . . Fabnet Peak Effective % . | . . . Robots Rewired . | . . . Allies Hacked . | . . . Hacks Repelled . | . . . Allies | -11 -10 -10 -------- Run | Yrd Mat Sub Total Allies . | . . . Largest Group . | . . . Highest-Rated Group . | . . . Highest-Rated Ally . | . . . Total Orders . | . . . Ally Attacks . | . . . Total Damage . | . . . Kills . | . . . Allies Corrupted . | . . . Allies Melted . | . . . Intel | -11 -10 -10 ------- Run | Yrd Mat Sub Robot Analysis Total 1 | . 1 . Derelict Logs Recovered . | . . . Drone Launches . | . . . Drone Recoveries . | . . . Exploration | -11 -10 -10 ------------- Run | Yrd Mat Sub Turns Passed 1232 | 87 912 233 Spaces Moved 572 | 47 441 84 Core 3 | 3 . . Treads 499 | 44 441 14 Legs 51 | . . 51 Wheels . | . . . Hover 19 | . . 19 Flight . | . . . Fastest Speed 50 | 50 160 130 Average Speed 160 | 152 160 166 Slowest Speed 300 | 160 160 300 Overloaded Moves . | . . . Propulsion Burnouts . | . . . Robots Hopped . | . . . Cave-ins Triggered . | . . . Exploration Rate (%) 27 | 5 74 4 Regions Visited 2 Branch Regions 1 Pre-discovered Areas . | . . . Known Exits Taken 1 | . 1 . Unknown Exits Taken 1 | 1 . . Scrap Searched . | . . . Spaces Dug . | . . . Terrain Destroyed . | . . . Melee . | . . . Projectile . | . . . AOE . | . . . Terrain Rammed . | . . . Walls Destroyed . | . . . Machines Disabled . | . . . Actions | -11 -10 -10 --------- Run | Yrd Mat Sub Total 772 | 59 579 134 Wait 88 | . 76 12 Move 570 | 46 440 84 Hop . | . . . Pick Up 16 | 6 7 3 Fast Attach 13 | 6 5 2 Attach 6 | . . 6 Detach 2 | . . 2 Swap 4 | 1 3 . Drop 12 | . 10 2 Fire 61 | . 38 23 Melee . | . . . Ram . | . . . Kick . | . . . Crush . | . . . Escape Stasis . | . . . Rewire . | . . . Trap . | . . . Miscellaneous . | . . . Route ------- -11/Scrapyard -10/Materials (discovered 5 exits: [*Mat x2] / [*Min x2] / *Sub) -10/Subcaves History --------- Turn | Location | Event 25 | -11/Scrapyard | Discovered new exit (range 15) 88 | -11/Scrapyard | Entered Materials 308 | -10/Materials | Build established: Mutant 314 | -10/Materials | Discovered new exit (range 9) 453 | -10/Materials | Discovered new exit (range 9) 673 | -10/Materials | Discovered new exit (range 15) 831 | -10/Materials | Discovered new exit (range 15) 997 | -10/Materials | Discovered new exit (range 3) 999 | -10/Materials | Identified exit to Subcaves 1000 | -10/Materials | Entered Subcaves 1030 | -10/Subcaves | A Subdweller sparked back to life 1030 | -10/Subcaves | A Subdweller sparked back to life 1030 | -10/Subcaves | A Subdweller sparked back to life 1060 | -10/Subcaves | Core integrity fell below 50% 1100 | -10/Subcaves | Lost 6 parts (3n1u2w) 1131 | -10/Subcaves | Found Prototype Leg 1131 | -10/Subcaves | Identified Cargo Legs 1133 | -10/Subcaves | Attached Cargo Legs, gained temporary slots: Utility x2 1214 | -10/Subcaves | Core integrity fell below 20% 1233 | -10/Subcaves | Destroyed by TU-HC9(R) with Subdweller Shrapnel Launcher Last Messages --------------- 01125_ Acquired 3 matter. 01128_ Subatomizers dissect the Med. Laser. 01131_ Dropped Hover Unit. 01131_ Acquired Prototype Leg. 01131_ Identified Cargo Legs. 01133_ Core temporarily expanded with Utility slot. 01136_ Acquired 1 matter. 01138_ >UORUIMOVNISST:Q%X AHL46/YCTY 01148_ Acquired Med. Laser. 01153_ Subatomizers dissect the Hover Unit, destroying it. 01153_ Acquired 10 matter. 01165_ System corrupted: Heat flow error (+106). 01166_ Subatomizers dissect the Sub. Monowheel. 01167_ Acquired Lgt. Treads. 01189_ Subatomizers dissect the Sub. Monowheel. 01218_ H8-YB9(R) destroyed. 01230_ TU-HC9(R) affixes Scrap Shield Fragment to Scrap Shield. Map ----- +----------------------------------------------------+ | ?????????????????????????????????? ??????????????? | | ?????????????????????????######?? #??????????????? | | ????????????????????????##& ### #??????????????? | | ????????????????????????# & #??????????????? | | ????????????????????????# & #??????????????? | | ????????????????????????#"" ###??????????????? | | ???????##???###?????????#" ##????????????????? | | ?????" # #####????## #?????????????????? | | ?????? ###### & ##?????????????????? | | ??????? "" ## ## #?????????????????? | | ????????# "# =##?####???????????????? | | ???????????# "" ## %#?## ##??????????????? | | ???????????##"" # ### ##?????????????? | | ????????????#"## #?????????????? | | ????????????#??## ####?????????????? | | ????????????????# # ## # # #????????????????? | | ????????????????##### ### #????????????????? | | ???????????????????# #????????????????? | | ???????????????????### ####????????????????? | | ?????????????????????# #???????????????????? | | ?????????????????????# #???????????????????? | | ?????????????????????# #???????????????????? | | ?????????????????????#; ###???????????????????? | | ?????????????????????#; ;##????????????????????? | | ????????????????????##; ; #????????????????????? | | ????????????????????#; R@; #????????????????????? | | ????????????????????##;=%;;;#????????????????????? | | ?????????????????????#;*&[ ;""???????????????????? | | ?????????????????????#; "" ""?????????????????? | | ?????????????????????#; """ # ""????????????????? | | ?????????????????????#########? "????????????????? | | ???????????????????????????????? ???????????????? | | ????????????????????????????????? ??????????????? | | ?????????????????????????????????? #?????????????? | | ?????????????????????????????????????????????????? | | ?????????????????????????????????????????????????? | | ?????????????????????????????????????????????????? | | ?????????????????????????????????????????????????? | | ?????????????????????????????????????????????????? | | ?????????????????????????????????????????????????? | | ?????????????????????????????????????????????????? | | ?????????????????????????????????????????????????? | | ?????????????????????????????????????????????????? | | ?????????????????????????????????????????????????? | | ?????????????????????????????????????????????????? | | ?????????????????????????????????????????????????? | | ?????????????????????????????????????????????????? | | ?????????????????????????????????????????????????? | | ?????????????????????????????????????????????????? | | ?????????????????????????????????????????????????? | +----------------------------------------------------+ Best States ------------- Heat Dissipation 25 Energy Generation 10 Energy Capacity 250 Matter Stores 300 Matter Capacity 300 Sight Range 16 Terrain Scan Density 10 Armor Coverage 800 Evasion (%) 55 Recoil Reduction 2 Item Schematics ----------------- None Robot Schematics ------------------ None Fabricated ------------ Nothing Alien Tech Used ----------------- None Achievements -------------- None Challenges ------------ None Game ------ Seed HeavyTeslaLoader Manual? 0 Play Time 00:15:41 Cumulative 18.0 hours Start 2024.04.09 @ 18:19:58 End 2024.04.09 @ 18:33:22 Sessions 1 Manual Loads 0 Difficulty Rogue Special Mode None Game No. 35 Rogue 35 Adventurer 0 Explorer 0 Win Type - Total 0 Types 0/0/0/0/0/0/0/0/0 Lore% 18 Gallery% 26 Achievement% 20 Wizard Run 0 Options --------- Layout 1 ASCII 0 Keyboard 1 Movement Arrows Keybinds 0 Fullscreen 1 Font 24/Smallcaps Map View 50x35 Zoom Use 0% Tactical HUD 1 Map Filters NONE Filters NONE Steam 1 RUN: 1cb69420-e8fb-4960-908d-edad1a6e0c5b